bitfinex/quotes_BTCUSD_20250814
["timestamp","ask_amount","ask_price","bid_price","bid_amount"]
[1755142162812,0.08596325,123420.0,123390.0,0.00897]
[1755142163014,0.08272325,123420.0,123400.0,0.12412]
[1755142163231,0.00524,123410.0,123400.0,0.12623]
[1755142163578,0.08172325,123410.0,123400.0,0.1292]
[1755142164162,0.00424,123430.0,123400.0,0.1292]
[1755142164346,0.08272325,123420.0,123400.0,0.1292]
[1755142164784,0.001,123410.0,123400.0,0.1292]
[1755142165066,0.001,123410.0,123400.0,0.52532]
[1755142166165,0.002,123410.0,123400.0,0.52532]
[1755142166536,0.002,123410.0,123400.0,0.42436]
[1755142166782,0.001,123410.0,123400.0,0.42436]
[1755142167142,0.001,123410.0,123400.0,0.42432]
[1755142167782,0.002,123410.0,123400.0,0.42432]
[1755142169035,0.002,123410.0,123400.0,0.32336]
[1755142170492,0.002,123410.0,123400.0,0.12916]
[1755142174930,0.004,123410.0,123400.0,0.32811]
[1755142175135,0.004,123410.0,123400.0,0.52227]
[1755142176512,0.004,123410.0,123400.0,0.52527]
[1755142176898,0.002,123410.0,123400.0,0.52527]
[1755142177587,0.002,123410.0,123400.0,0.30023]
[1755142177820,0.002,123410.0,123400.0,0.42427]
[1755142179658,0.002,123410.0,123400.0,0.12915]
[1755142184978,0.002,123410.0,123400.0,0.23011]
[1755142185199,0.002,123410.0,123400.0,0.52523]
[1755142187663,0.002,123410.0,123400.0,0.32331]
[1755142189681,0.002,123410.0,123400.0,0.12915]
[1755142193572,0.002,123410.0,123400.0,0.00511]
[1755142193796,0.002,123410.0,123400.0,0.12911]
[1755142194517,0.00396,123410.0,123400.0,0.12911]
[1755142195068,0.00396,123410.0,123400.0,0.52519]
[1755142196337,0.00396,123410.0,123400.0,0.52219]
[1755142196539,0.08992325,123410.0,123400.0,0.19416]
[1755142196745,0.08992325,123410.0,123400.0,0.124]
[1755142197550,0.08992325,123410.0,123380.0,0.003]
[1755142197738,0.08992325,123410.0,123390.0,0.124]
[1755142200619,0.08992325,123410.0,123390.0,0.003]
[1755142200899,0.08992325,123410.0,123400.0,0.12396]
[1755142201342,0.08472325,123410.0,123400.0,0.12912]
[1755142201483,0.002,123410.0,123400.0,0.12912]
[1755142201683,0.002,123410.0,123400.0,0.00516]
[1755142201903,0.002,123410.0,123400.0,0.12912]
[1755142204889,0.002,123410.0,123400.0,0.16015212]
[1755142205127,0.002,123410.0,123400.0,0.44616208]
[1755142205449,0.001,123410.0,123400.0,0.32328]
[1755142207671,0.55128284,123430.0,123400.0,0.32328]
[1755142207910,0.55128284,123430.0,123410.0,0.00315]
[1755142208129,0.55327284,123430.0,123420.0,0.12603]
[1755142208560,0.55643284,123430.0,123420.0,0.12603]
[1755142210974,0.55643284,123430.0,123420.0,0.12703]
[1755142211302,0.55743284,123430.0,123420.0,0.12903]
[1755142212163,1.2921085,123430.0,123420.0,0.003]
[1755142212381,1.2921085,123430.0,123420.0,0.12692]
[1755142213051,1.37459293,123430.0,123420.0,0.12692]
[1755142213497,1.2921085,123430.0,123420.0,0.003]
[1755142213676,1.2921085,123430.0,123420.0,0.12692]
[1755142214810,1.2911085,123430.0,123420.0,0.12492]
[1755142215042,1.2911085,123430.0,123420.0,0.42004]
[1755142215259,1.2911085,123430.0,123420.0,0.42104]
[1755142215689,1.2911085,123430.0,123420.0,0.42004]
[1755142215898,0.63915609,123430.0,123420.0,0.42004]
[1755142216393,0.64015609,123430.0,123420.0,0.42004]
[1755142219034,1.2921085,123430.0,123420.0,0.42004]
[1755142219171,1.2921085,123430.0,123420.0,0.31908]
[1755142219376,0.64015609,123430.0,123420.0,0.31908]
[1755142219582,1.2921085,123430.0,123420.0,0.31908]
[1755142221516,1.2921085,123430.0,123420.0,0.001]
[1755142221821,1.37459293,123430.0,123420.0,0.12492]
[1755142222007,1.37459293,123430.0,123420.0,0.001]
[1755142222212,0.72264052,123430.0,123420.0,0.12488]
[1755142222411,1.2921085,123430.0,123420.0,0.001]
[1755142222614,1.2921085,123430.0,123420.0,0.12488]
[1755142223617,0.64015609,123430.0,123420.0,0.12488]
[1755142223817,1.2921085,123430.0,123420.0,0.12488]
[1755142224054,1.5421085,123430.0,123420.0,0.12488]
[1755142225056,1.5421085,123430.0,123420.0,0.42]
[1755142225624,1.5421085,123430.0,123420.0,0.29612]
[1755142225832,0.89015609,123430.0,123420.0,0.42]
[1755142226336,0.96106233,123430.0,123420.0,0.42]
[1755142226558,0.89015609,123430.0,123420.0,0.29612]
[1755142226744,0.89015609,123430.0,123420.0,0.42]
[1755142227335,1.5421085,123430.0,123420.0,0.42]
[1755142227968,1.5421085,123430.0,123420.0,0.19516]
[1755142228167,1.5421085,123430.0,123420.0,0.31904]
[1755142228370,1.62459293,123430.0,123420.0,0.31904]
[1755142228782,0.97264052,123430.0,123420.0,0.31904]
[1755142229106,1.5421085,123430.0,123420.0,0.31904]
[1755142229277,0.89015609,123430.0,123420.0,0.12488]
[1755142229492,1.5421085,123430.0,123420.0,0.12488]
[1755142232303,1.5421085,123430.0,123420.0,0.12695]
[1755142232936,0.89015609,123430.0,123420.0,0.12695]
[1755142233391,1.5421085,123430.0,123420.0,0.12695]
[1755142234404,1.5421085,123430.0,123420.0,0.12488]
[1755142235091,6.5421085,123430.0,123420.0,0.42]
[1755142235774,6.5421085,123430.0,123420.0,0.29612]
[1755142235943,6.5421085,123430.0,123420.0,0.42]
[1755142236927,6.5421085,123430.0,123420.0,0.32108]
[1755142237138,6.5389485,123430.0,123420.0,0.32108]
[1755142237338,6.5389485,123430.0,123420.0,0.1972]
[1755142237538,6.5420085,123430.0,123420.0,0.31904]
[1755142237752,6.5420085,123430.0,123420.0,0.12488]
[1755142237963,6.57456696,123430.0,123420.0,0.12488]
[1755142239669,6.57456696,123430.0,123360.0,0.34426817]
[1755142239841,0.08272325,123420.0,123370.0,0.08272325]
[1755142240360,0.08578325,123420.0,123370.0,0.08272325]
[1755142240755,0.08578325,123420.0,123380.0,0.12388]
[1755142241078,0.16826768,123420.0,123380.0,0.12388]
[1755142241589,0.16926768,123420.0,123380.0,0.12388]
[1755142241793,0.16926768,123420.0,123390.0,0.00298]
[1755142241994,0.16826768,123420.0,123410.0,0.00204]
[1755142242197,0.08678325,123420.0,123410.0,0.12592]
[1755142242649,0.08578325,123420.0,123410.0,0.12592]
[1755142243091,0.08372325,123420.0,123410.0,0.12592]
[1755142243750,0.08472325,123420.0,123410.0,0.12592]
[1755142243971,0.08372325,123420.0,123410.0,0.12592]
[1755142244179,0.08372325,123420.0,123410.0,0.12692]
[1755142244382,0.08272325,123420.0,123410.0,0.12692]
[1755142244756,0.08372325,123420.0,123410.0,0.12892]
[1755142244996,0.08372325,123420.0,123410.0,0.22988]
[1755142245211,0.08372325,123420.0,123410.0,0.42404]
[1755142245607,0.08372325,123420.0,123410.0,0.32304]
[1755142247525,0.08372325,123420.0,123410.0,0.12888]
[1755142249882,0.08678325,123420.0,123410.0,0.12888]
[1755142251090,0.08888325,123420.0,123410.0,0.12888]
[1755142253066,0.82254523,123420.0,123410.0,0.12888]
[1755142253587,0.08888325,123420.0,123410.0,0.12888]
[1755142253771,0.82254523,123420.0,123410.0,0.12888]
[1755142255040,0.08888325,123420.0,123410.0,0.424]
[1755142255609,0.82254523,123420.0,123410.0,0.424]
[1755142256273,0.08888325,123420.0,123410.0,0.42196]
[1755142257367,0.08888325,123420.0,123410.0,0.321]
[1755142257567,0.82254523,123420.0,123410.0,0.321]
[1755142258463,0.08888325,123420.0,123410.0,0.321]
[1755142258640,0.84423309,123420.0,123410.0,0.12684]
[1755142258815,0.84423309,123420.0,123410.0,0.003]
[1755142259165,0.84423309,123420.0,123410.0,0.12684]
[1755142259403,0.84423309,123420.0,123410.0,0.12688]
[1755142259733,1.57789507,123420.0,123410.0,0.12684]
[1755142259935,1.64474278,123420.0,123410.0,0.003]
[1755142260310,1.64474278,123420.0,123410.0,0.12684]
[1755142260650,1.57789507,123420.0,123410.0,0.003]
[1755142260851,1.57789507,123420.0,123410.0,0.12684]
[1755142261050,1.57789507,123420.0,123410.0,0.12688]
[1755142261592,1.57789507,123420.0,123410.0,0.12692]
[1755142262740,0.76299965,123420.0,123410.0,0.12692]
[1755142263556,0.76299965,123420.0,123410.0,0.12592]
[1755142263933,0.76499965,123420.0,123410.0,0.12592]
[1755142264099,0.76299965,123420.0,123410.0,0.12592]
[1755142264542,0.76599965,123420.0,123410.0,0.12592]
[1755142265151,0.76599965,123420.0,123410.0,0.42104]
[1755142265357,0.76499965,123420.0,123410.0,0.41904]
[1755142265661,0.76599965,123420.0,123410.0,0.42004]
[1755142266328,0.76499965,123420.0,123410.0,0.41904]
[1755142266799,0.76599965,123420.0,123410.0,0.42004]
[1755142267297,0.76599965,123420.0,123410.0,0.29612]
[1755142267502,0.76599965,123420.0,123410.0,0.42]
[1755142267911,0.76599965,123420.0,123410.0,0.31904]
[1755142268128,0.76599965,123420.0,123410.0,0.319]
[1755142270129,0.76599965,123420.0,123410.0,0.12484]
[1755142273947,0.76599965,123420.0,123350.0,3.748e-05]
[1755142274168,0.65556854,123410.0,123350.0,0.08272325]
[1755142274306,0.08272325,123400.0,123350.0,0.08272325]
[1755142274507,0.73829179,123400.0,123350.0,0.08272325]
[1755142274706,0.00314,123390.0,123350.0,0.08272325]
[1755142274904,0.00314,123390.0,123380.0,0.10096]
[1755142275106,0.08586325,123390.0,123380.0,0.29516]
[1755142275309,0.13025658,123390.0,123380.0,0.31804]
[1755142275697,0.08272325,123390.0,123350.0,0.02376862]
[1755142275947,0.08272325,123390.0,123360.0,0.12384]
[1755142276150,0.08272325,123390.0,123370.0,0.12384]
[1755142276361,0.08272325,123390.0,123350.0,0.02576862]
[1755142276538,0.08272325,123380.0,123340.0,0.02567523]
[1755142276716,0.08386325,123380.0,123340.0,0.08690777]
[1755142276917,0.08386325,123380.0,123350.0,0.12784]
[1755142277122,0.08072325,123380.0,123360.0,0.12384]
[1755142277345,0.08072325,123380.0,123370.0,0.12384]
[1755142277547,0.08072325,123380.0,123370.0,0.12584]
[1755142277804,0.08072325,123380.0,123370.0,0.12384]
[1755142278221,0.08172325,123380.0,123370.0,0.12384]
[1755142278427,0.08072325,123380.0,123370.0,0.12384]
[1755142278809,0.8097582,123380.0,123370.0,0.002]
[1755142279013,0.16046966,123380.0,123370.0,0.002]
[1755142279230,0.73834179,123380.0,123370.0,0.002]
[1755142279662,0.73834179,123380.0,123370.0,0.12584]
[1755142280013,0.73834179,123380.0,123370.0,0.12384]
[1755142280214,0.74034179,123380.0,123370.0,0.12384]
[1755142280471,0.74334179,123380.0,123370.0,0.12384]
[1755142280668,0.81088081,123380.0,123370.0,0.12384]
[1755142280888,0.7403696,123380.0,123370.0,0.12384]
[1755142282119,0.7403696,123380.0,123340.0,0.02640868]
[1755142282314,0.00314,123370.0,123350.0,0.12388]
[1755142282520,0.08477325,123360.0,123350.0,0.12388]
[1755142282765,0.08791325,123360.0,123350.0,0.12388]
[1755142283115,0.08272325,123360.0,123350.0,0.12388]
[1755142284097,0.08472325,123360.0,123350.0,0.12388]
[1755142285007,0.08472325,123360.0,123350.0,0.52012]
[1755142285216,0.08786325,123360.0,123350.0,0.52012]
[1755142285876,0.08991325,123360.0,123350.0,0.52012]
[1755142288289,0.08991325,123360.0,123350.0,0.41912]
[1755142290258,0.08991325,123360.0,123350.0,0.12388]
[1755142291975,0.08786325,123360.0,123350.0,0.12388]
[1755142294610,0.08472325,123360.0,123350.0,0.12412]
[1755142295066,0.08472325,123360.0,123350.0,0.52036]
[1755142296774,0.08472325,123360.0,123350.0,0.41936]
[1755142300605,0.08472325,123360.0,123350.0,0.12412]
[1755142301196,0.08792325,123360.0,123350.0,0.12412]
[1755142302179,0.08996325,123360.0,123350.0,0.12412]
[1755142303034,0.08996325,123360.0,123340.0,0.02576349]
[1755142303262,0.08996325,123360.0,123350.0,0.12412]
[1755142303888,0.08896325,123360.0,123350.0,0.12412]
[1755142304079,0.08796325,123360.0,123350.0,0.12412]
[1755142304281,0.08896325,123360.0,123350.0,0.12412]
[1755142304687,0.08796325,123360.0,123350.0,0.12412]
[1755142305114,0.08896325,123360.0,123350.0,0.52036]
[1755142306107,0.08896325,123360.0,123350.0,0.41936]
[1755142308178,0.08896325,123360.0,123350.0,0.31836]
[1755142309350,0.08692325,123360.0,123340.0,0.02662258]
[1755142309553,0.08692325,123360.0,123350.0,0.12412]
[1755142310275,0.08592325,123360.0,123350.0,0.12412]
[1755142310717,0.08692325,123360.0,123350.0,0.12412]
[1755142311129,0.08592325,123360.0,123350.0,0.12412]
[1755142311338,0.08796325,123360.0,123350.0,0.12412]
[1755142311560,0.08896325,123360.0,123350.0,0.12412]
[1755142312552,0.08896325,123360.0,123340.0,0.02660551]
[1755142312754,0.08576325,123360.0,123350.0,0.12408]
[1755142313321,0.08896325,123360.0,123350.0,0.12408]
[1755142313620,0.08796325,123360.0,123350.0,0.12408]
[1755142313815,0.11103949,123360.0,123340.0,0.001]
[1755142314128,0.11103949,123360.0,123350.0,0.12412]
[1755142314339,0.11003949,123360.0,123320.0,0.000344]
[1755142314546,0.08796325,123360.0,123330.0,0.12412]
[1755142314775,0.08896325,123360.0,123320.0,0.000344]
[1755142314987,0.0032,123350.0,123340.0,0.101]
[1755142315163,0.8072395,123350.0,123340.0,0.29524]
[1755142315335,0.88972393,123350.0,123340.0,0.31836]
[1755142315583,0.88972393,123350.0,123340.0,0.31936]
[1755142316628,0.88972393,123350.0,123340.0,0.19524]
[1755142316783,0.88972393,123350.0,123340.0,0.31936]
[1755142316979,0.88972393,123350.0,123340.0,0.001]
[1755142317311,0.88972393,123350.0,123340.0,0.12408]
[1755142317852,0.89072393,123350.0,123340.0,0.12508]
[1755142318032,0.89072393,123350.0,123340.0,0.12408]
[1755142318384,0.89172393,123350.0,123340.0,0.12408]
[1755142321543,0.89172393,123350.0,123320.0,0.02663135]
[1755142321745,0.73835179,123340.0,123330.0,0.124]
[1755142321941,0.82287622,123340.0,123330.0,0.124]
[1755142322355,0.82287622,123340.0,123330.0,0.12408]
[1755142322967,0.17044768,123340.0,123330.0,0.12408]
[1755142323450,0.82287622,123340.0,123330.0,0.12408]
[1755142323875,0.82287622,123340.0,123320.0,0.02663135]
[1755142324028,0.17044768,123340.0,123330.0,0.12412]
[1755142324226,0.08476325,123340.0,123320.0,0.02663135]
[1755142324429,0.08476325,123340.0,123330.0,0.12408]
[1755142324952,0.08896325,123340.0,123330.0,0.12408]
[1755142325184,0.08896325,123340.0,123330.0,0.41936]
[1755142327495,0.08896325,123340.0,123330.0,0.29528]
[1755142327739,0.08896325,123340.0,123330.0,0.31836]
[1755142329923,0.08896325,123340.0,123330.0,0.19428]
[1755142330123,0.75028812,123340.0,123320.0,0.000344]
[1755142330328,0.75028812,123340.0,123330.0,0.12416]
[1755142330329,0.74708812,123340.0,123330.0,0.12416]
[1755142330726,0.74708812,123340.0,123320.0,0.000344]
[1755142330973,0.74608812,123340.0,123330.0,0.1242]
[1755142331337,0.74608812,123340.0,123320.0,0.000344]
[1755142331534,0.00294,123330.0,123320.0,0.000344]
[1755142331777,0.74009179,123330.0,123320.0,0.001344]
[1755142331930,0.74009179,123330.0,123320.0,0.124544]
[1755142332136,0.8149906,123330.0,123320.0,0.124544]
[1755142332534,0.8149906,123330.0,123320.0,0.000344]
[1755142332799,0.8149906,123330.0,123320.0,0.124504]
[1755142332944,0.8149906,123330.0,123320.0,0.125504]
[1755142333144,0.74009179,123330.0,123320.0,0.125504]
[1755142333812,0.74109179,123330.0,123320.0,0.125504]
[1755142334195,0.74009179,123330.0,123320.0,0.125504]
[1755142334602,0.74109179,123330.0,123320.0,0.124504]
[1755142335013,0.74109179,123330.0,123320.0,0.419824]
[1755142335584,0.8160906,123330.0,123320.0,0.419824]
[1755142337855,0.74109179,123330.0,123320.0,0.194624]
[1755142338057,0.74109179,123330.0,123320.0,0.194664]
[1755142338269,0.74109179,123330.0,123320.0,0.318744]
[1755142339268,0.74109179,123330.0,123320.0,0.124424]
[1755142339737,0.74209179,123330.0,123320.0,0.124424]
[1755142339927,0.74109179,123330.0,123320.0,0.124424]
[1755142340149,0.74209179,123330.0,123320.0,0.124424]
[1755142340582,0.82457622,123330.0,123320.0,0.124424]
[1755142340792,0.84919615,123330.0,123320.0,0.124424]
[1755142341888,0.88139032,123330.0,123320.0,0.124424]
[1755142342242,0.84919615,123330.0,123320.0,0.124424]
[1755142345054,0.84919615,123330.0,123320.0,0.419784]
[1755142345701,0.8825933,123330.0,123320.0,0.419784]
[1755142349313,0.8825933,123330.0,123320.0,0.318744]
[1755142349485,0.8825933,123330.0,123320.0,0.000344]
[1755142349694,0.8825933,123330.0,123320.0,0.124304]
[1755142352199,0.76671172,123330.0,123320.0,0.000344]
[1755142352408,0.76671172,123330.0,123320.0,0.124304]
[1755142352813,0.79943139,123330.0,123320.0,0.124304]
[1755142353019,0.79943139,123330.0,123320.0,0.000344]
[1755142353236,0.88191582,123330.0,123320.0,0.124304]
[1755142354916,0.88191582,123330.0,123320.0,0.101384]
[1755142355128,0.88191582,123330.0,123320.0,0.419664]
[1755142356050,0.85729589,123330.0,123320.0,0.419664]
[1755142359278,0.86179589,123330.0,123320.0,0.419664]
[1755142359405,0.20936735,123330.0,123320.0,0.419664]
[1755142359660,0.77931146,123330.0,123320.0,0.318624]
[1755142360575,0.77931146,123330.0,123320.0,0.000344]
[1755142360768,0.80387554,123330.0,123320.0,0.124384]
[1755142361826,0.80387554,123330.0,123250.0,0.04651863]
[1755142361955,0.65242854,123310.0,123260.0,0.08272325]
[1755142362154,0.08272325,123310.0,123260.0,0.08272325]
[1755142362817,0.62431079,123310.0,123260.0,0.08272325]
[1755142363006,0.62431079,123310.0,123270.0,0.12404]
[1755142363204,0.08272325,123310.0,123270.0,0.12404]
[1755142363414,0.62431079,123310.0,123270.0,0.12404]
[1755142364004,0.62531079,123310.0,123270.0,0.12404]
[1755142364391,0.08372325,123310.0,123270.0,0.12404]
[1755142365164,0.08372325,123310.0,123300.0,0.19432]
[1755142365332,0.08372325,123310.0,123300.0,0.31836]
[1755142365534,0.08372325,123310.0,123300.0,0.35170639]
[1755142365758,0.14055014,123310.0,123300.0,0.35170639]
[1755142367154,0.14055014,123310.0,123300.0,0.22766639]
[1755142367360,0.62509574,123310.0,123300.0,0.35170639]
[1755142367815,0.14368014,123310.0,123300.0,0.35170639]
[1755142367990,0.56826885,123310.0,123300.0,0.35170639]
[1755142369592,0.56726885,123310.0,123300.0,0.35170639]
[1755142371080,0.56826885,123310.0,123300.0,0.22766639]
[1755142371287,0.56726885,123310.0,123300.0,0.35166639]
[1755142371724,0.56726885,123310.0,123300.0,0.35266639]
[1755142371973,0.57966024,123310.0,123300.0,0.35266639]
[1755142372170,0.08585325,123310.0,123300.0,0.35266639]
[1755142372995,0.08585325,123310.0,123300.0,0.15834639]
[1755142374665,0.08272325,123310.0,123300.0,0.03434639]
[1755142374862,0.0055,123330.0,123300.0,0.03434639]
[1755142375069,0.08822325,123330.0,123320.0,0.19436]
[1755142375308,0.08822325,123330.0,123320.0,0.31836]
[1755142375495,0.08722325,123330.0,123320.0,0.31836]
[1755142376084,0.08722325,123330.0,123300.0,0.03434639]
[1755142376085,0.57371885,123330.0,123300.0,0.03334639]
[1755142376292,0.57371885,123330.0,123310.0,0.124]
[1755142376449,0.65620328,123330.0,123310.0,0.124]
[1755142376924,0.65720328,123330.0,123310.0,0.124]
[1755142377327,0.65620328,123330.0,123310.0,0.124]
[1755142377680,0.17778768,123330.0,123310.0,0.124]
[1755142377890,0.57471885,123330.0,123320.0,0.12396]
[1755142378290,0.57571885,123330.0,123320.0,0.12396]
[1755142378713,0.09430325,123330.0,123300.0,0.03325758]
[1755142378893,0.09330325,123330.0,123310.0,0.12424]
[1755142379139,0.09230325,123330.0,123320.0,0.12424]
[1755142379575,0.09430325,123330.0,123320.0,0.12424]
[1755142380372,0.09630325,123330.0,123320.0,0.12424]
[1755142381091,0.09430325,123330.0,123270.0,0.08272325]
[1755142381267,0.08272325,123320.0,123270.0,0.53152325]
[1755142382216,0.08272325,123320.0,123280.0,0.12468]
[1755142382530,0.08372325,123320.0,123280.0,0.12468]
[1755142382787,0.08272325,123320.0,123280.0,0.12468]
[1755142383465,0.08585325,123320.0,123280.0,0.12468]
[1755142384144,0.08585325,123320.0,123280.0,0.15695522]
[1755142384462,0.08685325,123320.0,123280.0,0.15695522]
[1755142385159,0.08685325,123320.0,123310.0,0.19432]
[1755142385332,0.08880325,123320.0,123310.0,0.31896]
[1755142386590,0.08780325,123320.0,123310.0,0.31896]
[1755142386800,0.08980325,123320.0,123310.0,0.31996]
[1755142387898,0.09180325,123320.0,123310.0,0.31996]
[1755142388115,0.15239232,123320.0,123310.0,0.31996]
[1755142388756,0.09180325,123320.0,123310.0,0.31996]
[1755142389488,0.09180325,123320.0,123310.0,0.12564]
[1755142394605,0.08985325,123320.0,123310.0,0.12564]
[1755142395077,0.08985325,123320.0,123310.0,0.421]
[1755142395520,0.09197325,123320.0,123310.0,0.421]
[1755142395726,0.08985325,123320.0,123310.0,0.421]
[1755142397582,0.08985325,123320.0,123310.0,0.31988]
[1755142398614,0.08985325,123320.0,123310.0,0.001]
[1755142398615,0.004,123320.0,123310.0,0.001]
[1755142398792,0.004,123320.0,123310.0,0.15307063]
[1755142399114,0.004,123320.0,123310.0,0.12556]
[1755142399367,0.004,123320.0,123310.0,0.12552]
[1755142399759,0.002,123320.0,123310.0,0.1246]
[1755142400102,0.003,123320.0,123310.0,0.1256]
[1755142400537,0.00611,123320.0,123310.0,0.1256]
[1755142400736,0.00823,123320.0,123310.0,0.001]
[1755142400955,0.00823,123320.0,123310.0,0.1256]
[1755142401326,0.00623,123320.0,123310.0,0.1256]
[1755142401731,0.00723,123320.0,123310.0,0.1256]
[1755142402202,0.002,123320.0,123310.0,0.1256]
[1755142403185,0.002,123320.0,123280.0,0.02276209]
[1755142403390,0.002,123320.0,123280.0,0.12065204]
[1755142403945,0.002,123320.0,123280.0,0.09788995]
[1755142404159,0.001,123320.0,123280.0,0.09788995]
[1755142404375,0.001,123320.0,123290.0,0.12456]
[1755142404620,0.002,123320.0,123290.0,0.1397267]
[1755142405006,0.001,123320.0,123310.0,0.29536]
[1755142405230,0.001,123320.0,123310.0,0.4350867]
[1755142406225,0.00761,123330.0,123310.0,0.4350867]
[1755142406431,0.09033325,123330.0,123310.0,0.4350867]
[1755142406638,0.001,123320.0,123310.0,0.4350867]
[1755142406865,0.00411,123320.0,123310.0,0.4350867]
[1755142407063,0.00411,123320.0,123310.0,0.1397267]
[1755142407282,0.00311,123320.0,123310.0,0.1397267]
[1755142408037,0.00411,123320.0,123310.0,0.13972714]
[1755142409283,0.00511,123320.0,123310.0,0.14072714]
[1755142410297,0.002,123320.0,123310.0,0.14072714]
[1755142413076,0.00511,123320.0,123310.0,0.14072714]
[1755142415092,0.002,123320.0,123310.0,0.4446802]
[1755142415299,0.002,123320.0,123310.0,0.4445202]
[1755142415712,0.002,123320.0,123310.0,0.3434802]
[1755142416338,0.002,123320.0,123310.0,0.33488714]
[1755142416966,0.002,123320.0,123310.0,0.01616714]
[1755142417173,0.002,123320.0,123310.0,0.14052714]
[1755142418219,0.001,123320.0,123310.0,0.14052714]
[1755142418423,0.001,123320.0,123310.0,0.14152714]
[1755142419085,0.00774,123330.0,123310.0,0.14052714]
[1755142419397,0.001,123320.0,123310.0,0.14152714]
[1755142419849,0.00424,123320.0,123310.0,0.14152714]
[1755142420075,0.00324,123320.0,123310.0,0.14052714]
[1755142420286,0.00324,123320.0,123310.0,0.14152714]
[1755142420501,0.00874,123330.0,123310.0,0.14152714]
[1755142420958,0.00774,123330.0,123310.0,0.14052714]
[1755142421817,0.00774,123330.0,123310.0,0.13952714]
[1755142422238,0.001,123320.0,123310.0,0.14152714]
[1755142422601,0.00774,123330.0,123310.0,0.14052714]
[1755142423013,0.00874,123330.0,123310.0,0.14152714]
[1755142424787,0.00874,123330.0,123310.0,0.14052714]
[1755142424985,0.00874,123330.0,123320.0,0.29532]
[1755142425247,0.01088,123330.0,123320.0,0.31048714]
[1755142425799,0.00988,123330.0,123320.0,0.31048714]
[1755142426226,0.01188,123330.0,123320.0,0.31148714]
[1755142426608,0.01288,123330.0,123320.0,0.31148714]
[1755142427852,0.01288,123330.0,123320.0,0.01616714]
[1755142428402,0.01074,123330.0,123320.0,0.14040714]
[1755142428604,0.0075,123330.0,123320.0,0.14040714]
[1755142431495,0.01074,123330.0,123320.0,0.14040714]
[1755142431907,0.01074,123330.0,123320.0,0.12524]
[1755142432154,0.01074,123330.0,123320.0,0.14039683]
[1755142433353,0.01288,123330.0,123320.0,0.14039683]
[1755142434384,0.01074,123330.0,123320.0,0.14039683]
[1755142434980,0.01074,123330.0,123320.0,0.24143683]
[1755142435187,0.01288,123330.0,123320.0,0.43571683]
[1755142435789,0.01288,123330.0,123320.0,0.33451683]
[1755142435994,0.01288,123330.0,123320.0,0.01615683]
[1755142436229,0.01288,123330.0,123320.0,0.14023683]
[1755142437946,0.01288,123330.0,123320.0,0.12508]
[1755142438150,0.01288,123330.0,123320.0,0.14024086]
[1755142438322,0.57669115,123330.0,123320.0,0.01616086]
[1755142438526,0.15327237,123330.0,123320.0,0.14020086]
[1755142439470,0.09560325,123330.0,123320.0,0.12504]
[1755142445094,0.09560325,123330.0,123320.0,0.5214]
[1755142446435,0.09560325,123330.0,123320.0,0.42036]
[1755142447433,0.09560325,123330.0,123320.0,0.19528]
[1755142447596,0.09560325,123330.0,123320.0,0.31932]
[1755142448420,0.09480325,123330.0,123320.0,0.31932]
[1755142449561,0.0067,123330.0,123320.0,0.12504]
[1755142450380,0.0067,123330.0,123320.0,0.001]
[1755142450597,0.0067,123330.0,123320.0,0.12504]
[1755142451648,0.00976,123330.0,123320.0,0.12504]
[1755142453869,0.0067,123330.0,123320.0,0.12504]
[1755142454662,0.0067,123330.0,123320.0,0.13050026]
[1755142455126,0.0067,123330.0,123320.0,0.52686026]
[1755142455369,0.0067,123330.0,123320.0,0.29632]
[1755142455572,0.0067,123330.0,123320.0,0.42036]
[1755142456694,0.0047,123330.0,123320.0,0.41936]
[1755142457002,0.0057,123330.0,123320.0,0.42036]
[1755142457577,0.0057,123330.0,123320.0,0.19528]
[1755142457727,0.0047,123330.0,123320.0,0.31932]
[1755142458135,0.0047,123330.0,123320.0,0.32032]
[1755142458334,0.0047,123330.0,123320.0,0.12604]
[1755142459732,0.0037,123330.0,123320.0,0.12504]
[1755142460158,0.0037,123330.0,123320.0,0.126]
[1755142460358,0.0037,123330.0,123320.0,0.2350527]
[1755142460627,0.0037,123330.0,123320.0,0.1360527]
[1755142460895,0.0037,123330.0,123320.0,0.2590527]
[1755142461309,0.0037,123330.0,123320.0,0.1360527]
[1755142461508,0.0037,123330.0,123320.0,0.2600527]
[1755142462952,0.0037,123330.0,123320.0,0.2590527]
[1755142464505,0.0037,123330.0,123320.0,0.2580527]
[1755142465031,0.0037,123330.0,123320.0,0.6562927]
[1755142465434,0.0037,123330.0,123320.0,0.4312927]
[1755142465631,0.0037,123330.0,123320.0,0.5532927]
[1755142466014,0.0037,123330.0,123320.0,0.5572927]
[1755142467167,0.0037,123330.0,123320.0,0.5322927]
[1755142467406,0.0037,123330.0,123320.0,0.5572927]
[1755142468770,0.0037,123330.0,123320.0,1.0060927]
[1755142469472,0.0037,123330.0,123320.0,0.7108527]
[1755142469690,0.0037,123330.0,123320.0,0.68452325]
[1755142470327,0.0037,123330.0,123320.0,0.65952325]
[1755142470542,0.0037,123330.0,123320.0,0.68452325]
[1755142472653,0.0037,123330.0,123320.0,0.83012406]
[1755142473279,0.00877,123330.0,123320.0,0.68112406]
[1755142473484,0.00877,123330.0,123320.0,0.5768]
[1755142474315,0.00877,123330.0,123320.0,0.57376]
[1755142474486,0.00877,123330.0,123320.0,0.12496]
[1755142474691,0.00877,123330.0,123320.0,0.12396]
[1755142474899,0.00877,123330.0,123320.0,0.12496]
[1755142475068,0.00877,123330.0,123320.0,0.5222]
[1755142475269,0.00877,123330.0,123320.0,0.5212]
[1755142475510,0.00877,123330.0,123320.0,0.5202]
[1755142476112,0.00977,123330.0,123320.0,0.5202]
[1755142476612,0.00977,123330.0,123320.0,0.19424]
[1755142476833,0.00977,123330.0,123320.0,0.31824]
[1755142477604,0.00977,123330.0,123280.0,0.6274717]
[1755142477811,0.00671,123330.0,123290.0,0.20672325]
[1755142478015,0.00324,123320.0,123290.0,0.08272325]
[1755142478215,0.00324,123320.0,123300.0,0.124]